fUST/lending_fUST_20250227
["ID","MTS","AMOUNT","RATE_DAILY","PERIOD"]
[354659479,1740604270465,-153.0,0.00064076,60]
[354659480,1740604270474,-153.0,0.00064076,60]
[354659481,1740604270483,-153.0,0.00064076,60]
[354659482,1740604270492,-791.245284,0.00064076,60]
[354659483,1740604270501,-557.5803526,0.00064076,60]
[354659484,1740604270511,-557.5803526,0.00064076,60]
[354659485,1740604270520,-557.5803526,0.00064076,60]
[354659486,1740604270530,-557.5803526,0.00064076,60]
[354659487,1740604270539,-557.5803526,0.00064076,60]
[354659488,1740604270548,-153.0,0.00064076,60]
[354659489,1740604270557,-153.0,0.00064076,60]
[354659490,1740604270566,-153.0,0.00064076,60]
[354659491,1740604270575,-557.5803526,0.00064076,60]
[354659492,1740604270584,-557.5803526,0.00064076,60]
[354659493,1740604270593,-557.5803526,0.00064076,60]
[354659494,1740604270604,-557.5803526,0.00064076,60]
[354659495,1740604270613,-557.5803526,0.00064076,60]
[354659496,1740604270622,-557.5803526,0.00064076,60]
[354659497,1740604270632,-557.5803526,0.00064076,60]
[354659498,1740604270641,-557.5803526,0.00064076,60]
[354659499,1740604270651,-557.5803526,0.00064076,60]
[354659500,1740604270660,-557.5803526,0.00064076,60]
[354659501,1740604270669,-557.5803526,0.00064076,60]
[354659502,1740604270679,-557.5803526,0.00064076,60]
[354659503,1740604270688,-557.5803526,0.00064076,60]
[354659504,1740604270698,-557.5803526,0.00064076,60]
[354659505,1740604270708,-557.5803526,0.00064076,60]
[354659506,1740604270717,-557.5803526,0.00064076,60]
[354659507,1740604270727,-557.5803526,0.00064076,60]
[354659508,1740604270736,-557.5803526,0.00064076,60]
[354659509,1740604270746,-518.6241099,0.00064076,60]
[354659510,1740604270755,-153.0,0.00064076,60]
[354659511,1740604270764,-153.0,0.00064076,60]
[354659512,1740604270773,-153.0,0.00064076,60]
[354659513,1740604270782,-153.0,0.00064076,60]
[354659514,1740604270792,-500.0,0.00064251,120]
[354659515,1740604270802,-500.0,0.00064252,120]
[354659516,1740604270811,-534.61,0.00064252,120]
[354659517,1740604270821,-500.0,0.00064252,120]
[354659518,1740604270831,-500.0,0.00064252,120]
[354659519,1740604270841,-500.0,0.00064252,120]
[354659520,1740604270855,-500.0,0.00064252,120]
[354659521,1740604270865,-500.0,0.00064252,14]
[354659522,1740604270875,-500.0,0.00064252,120]
[354659523,1740604270886,-550.81,0.00064252,120]
[354659524,1740604270896,-543.82527132,0.00064252,120]
[354659525,1740604270906,-500.0,0.00064252,120]
[354659526,1740604270916,-500.0,0.00064252,120]
[354659527,1740604270926,-500.0,0.00064525,120]
[354659528,1740604270936,-500.0,0.00064526,120]
[354659529,1740604270946,-534.61,0.00064526,120]
[354659530,1740604270956,-500.0,0.00064526,120]
[354659531,1740604270966,-500.0,0.00064526,120]
[354659532,1740604270975,-500.0,0.00064526,120]
[354659533,1740604270985,-500.0,0.00064526,120]
[354659534,1740604270995,-500.0,0.00064526,14]
[354659535,1740604271004,-500.0,0.00064526,120]
[354659536,1740604271013,-550.81,0.00064526,120]
[354659537,1740604271023,-500.0,0.00064526,120]
[354659538,1740604271032,-500.0,0.00064526,120]
[354659539,1740604271042,-500.0,0.00064799,120]
[354659540,1740604271051,-500.0,0.000648,120]
[354659541,1740604271060,-534.61,0.000648,120]
[354659542,1740604271070,-372.29077679,0.000648,120]
[354659543,1740604271079,-500.0,0.000648,120]
[354659544,1740604271089,-500.0,0.000648,120]
[354659545,1740604271098,-500.0,0.000648,120]
[354659546,1740604271109,-500.0,0.000648,14]
[354659547,1740604271119,-500.0,0.000648,120]
[354659548,1740604271128,-550.81,0.000648,120]
[354659549,1740604271138,-500.0,0.000648,120]
[354659550,1740604271147,-500.0,0.000648,120]
[354659551,1740604271156,-151.0,0.00065068,120]
[354659552,1740604271166,-500.0,0.00065073,120]
[354659553,1740604271175,-265.37752155,0.00065074,120]
[354659554,1740604271185,-534.61,0.00065074,120]
[354659555,1740604271195,-500.0,0.00065074,120]
[354659556,1740604271205,-560.38589663,0.00065074,120]
[354659557,1740604271214,-425.9914326,0.00065074,120]
[354659558,1740604271224,-500.0,0.00065074,14]
[354659559,1740604271234,-500.0,0.00065074,120]
[354659560,1740604271243,-550.81,0.00065074,120]
[354659561,1740604271253,-500.0,0.00065074,120]
[354659562,1740604271263,-500.0,0.00065074,120]
[354659563,1740604271273,-500.0,0.00065347,120]
[354659564,1740604271282,-534.61,0.00065348,120]
[354659565,1740604271291,-500.0,0.00065348,120]
[354659566,1740604271301,-500.0,0.00065348,14]
[354659567,1740604271310,-500.0,0.00065348,120]
[354659568,1740604271320,-550.81,0.00065348,120]
[354659569,1740604271329,-254.44001868,0.00065348,120]
[354659570,1740604271339,-500.0,0.00065348,120]
[354659571,1740604271349,-500.0,0.00065621,120]
[354659572,1740604271359,-534.61,0.00065622,120]
[354659573,1740604271369,-313.74439141,0.00065622,120]
[354659574,1740604271378,-500.0,0.00065622,14]
[354659575,1740604271388,-500.0,0.00065622,120]
[354659576,1740604271397,-550.81,0.00065622,120]
[354659577,1740604271407,-388.98514302,0.00065622,120]
[354659578,1740604271417,-152.0,0.00065753,120]
[354659579,1740604271427,-500.0,0.00065895,120]
[354659580,1740604271436,-534.61,0.00065896,120]
[354659581,1740604271445,-500.0,0.00065896,14]
[354659582,1740604271455,-500.0,0.00065896,120]
[354659583,1740604271465,-550.81,0.00065896,120]
[354659584,1740604271475,-378.67773144,0.00066169,120]
[354659585,1740604271484,-534.61,0.0006617,120]
[354659586,1740604271494,-322.35157071,0.0006617,14]
[354659587,1740604271503,-539.76082376,0.0006617,120]
[354659588,1740604271513,-550.81,0.0006617,120]
[354659589,1740604271522,-534.75762362,0.00066444,120]
[354659590,1740604271532,-551.00523003,0.00066444,120]
[354659591,1740604271541,-166.43,0.000665,30]
[354659592,1740604271551,-332.6,0.000665,30]
[354659593,1740604271561,-154.0,0.00067,120]
[354659594,1740604271570,-157.0,0.00067,120]
[354659595,1740604271579,-155.0,0.00067,120]
[354659596,1740604271590,-154.0,0.00067,120]
[354659597,1740604271600,-295.11,0.000673,30]
[354659598,1740604271611,-1500.0,0.00067571,15]
[354659599,1740604271620,-1000.0,0.00067871,15]
[354659600,1740604271630,-1216.01227317,0.00067871,15]
[354659601,1740604271640,-1500.0,0.00067871,14]
[354659602,1740604271649,-12173.92,0.00068492,120]
[354659603,1740604271658,-1000.0,0.00068493,60]
[354659604,1740604271668,-1000.0,0.00068493,60]
[354659605,1740604271677,-1000.0,0.00068493,60]
[354659606,1740604271688,-1000.0,0.00068493,60]
[354659607,1740604271698,-1000.0,0.00068493,60]
[354659608,1740604271707,-711.77611592,0.00068493,60]
[354659609,1740604271718,-1000.0,0.00068493,120]
[354659610,1740604271728,-1000.0,0.00068493,120]
[354659611,1740604271738,-1000.0,0.00068493,120]
[354659612,1740604271748,-1000.0,0.00068493,120]
[354659613,1740604271758,-1000.0,0.00068493,120]
[354659614,1740604271768,-1000.0,0.00068493,120]
[354659615,1740604271778,-1000.0,0.00068493,120]
[354659616,1740604271787,-1000.0,0.00068493,120]
[354659617,1740604271797,-433.7053003,0.00068493,120]
[354659618,1740604271806,-666.0,0.00068493,120]
[354659619,1740604271816,-500.0,0.00068493,120]
[354659620,1740604271826,-500.0,0.00068493,120]
[354659621,1740604271835,-500.0,0.00068493,120]
[354659622,1740604271845,-500.0,0.00068493,120]
[354659623,1740604271857,-500.0,0.00068493,120]
[354659624,1740604271869,-500.0,0.00068493,120]
[354659625,1740604271879,-500.0,0.00068493,120]
[354659626,1740604271888,-450.0,0.00068493,120]
[354659627,1740604271898,-500.0,0.00068493,120]
[354659628,1740604271908,-500.0,0.00068493,120]
[354659629,1740604271917,-500.0,0.00068493,120]
[354659630,1740604271927,-500.0,0.00068493,120]
[354659631,1740604271937,-500.0,0.00068493,120]
[354659632,1740604271946,-500.0,0.00068493,120]
[354659633,1740604271955,-500.0,0.00068493,120]
[354659634,1740604271965,-500.0,0.00068493,120]
[354659635,1740604271976,-500.0,0.00068493,120]
[354659636,1740604271985,-500.0,0.00068493,120]
[354659637,1740604271995,-500.0,0.00068493,120]
[354659638,1740604272004,-3810.2,0.00068493,10]
[354659639,1740604272013,-3175.16,0.00068493,10]
[354659640,1740604272023,-2645.97,0.00068493,10]
[354659641,1740604272033,-19345.11242774,0.0007,30]
[354659642,1740604272042,-19345.11242774,0.0007,30]
[354659643,1740604272051,-14193.22323861,0.0007,30]
[354659644,1740604272061,-1500.0,0.00070023,7]
[354659645,1740604272071,-151.0,0.00070082,120]
[354659646,1740604272081,-168.803,0.00071369,120]
[354659647,1740604272091,-165.03,0.000719,60]
[354659648,1740604272100,-154.57,0.000721,30]
[354659649,1740604272110,-12173.92,0.00073971,120]
[354659650,1740604272119,-151.0,0.00075096,120]
[354659651,1740604272129,-1638.16,0.000753,7]
[354659652,1740604272138,-846.69,0.00076712,120]
[354659653,1740604272147,-846.69,0.00076712,120]
[354659654,1740604272156,-846.69,0.00076712,120]
[354659655,1740604272165,-846.69,0.00076712,120]
[354659656,1740604272174,-846.69,0.00076712,120]
[354659657,1740604272183,-846.69,0.00076712,120]
[354659658,1740604272192,-846.69,0.00076712,120]
[354659659,1740604272201,-846.69,0.00076712,120]
[354659660,1740604272210,-846.69,0.00076712,120]
[354659661,1740604272219,-846.69,0.00076712,120]
[354659662,1740604272228,-846.69,0.00076712,120]
[354659663,1740604272238,-846.69,0.00076712,120]
[354659664,1740604272247,-846.69,0.00076712,120]
[354659665,1740604272255,-846.69,0.00076712,120]
[354659666,1740604272264,-846.69,0.00076712,120]
[354659667,1740604272273,-846.69,0.00076712,120]
[354659668,1740604272282,-846.69,0.00076712,120]
[354659669,1740604272291,-846.69,0.00076712,120]
[354659670,1740604272383,-846.69,0.00076712,120]
[354659671,1740604272392,-846.69,0.00076712,120]
[354659672,1740604272401,-846.69,0.00076712,120]
[354659673,1740604272411,-846.69,0.00076712,120]
[354659674,1740604272420,-846.69,0.00076712,120]
[354659675,1740604272430,-846.71,0.00076712,120]
[354659676,1740604272439,-12173.92,0.0007945,120]
[354659677,1740604272449,-151.0,0.0008011,120]
[354659678,1740604272459,-2000.0,0.00080545,15]
[354659679,1740604272468,-2000.0,0.00080845,14]
[354659680,1740604272477,-160.0,0.00081473,2]
[354659681,1740604272487,-19607.61712864,0.00081548,2]
[354659682,1740604272497,-14193.22323861,0.00081714,30]
[354659683,1740604272507,-295.11,0.00082,30]
[354659684,1740604272516,-186.37976453,0.00082027,120]
[354659685,1740604272526,-150.0,0.000821,15]
[354659686,1740604272535,-888.0,0.00082191,120]
[354659687,1740604272544,-888.0,0.00082191,120]
[354659688,1740604272553,-888.0,0.00082191,120]
[354659689,1740604272563,-888.0,0.00082191,120]
[354659690,1740604272572,-888.0,0.00082191,120]
[354659691,1740604272581,-888.0,0.00082191,120]
[354659692,1740604272590,-888.0,0.00082191,120]
[354659693,1740604272599,-888.0,0.00082191,120]
[354659694,1740604272610,-434.21317511,0.00082191,120]
[354659695,1740604272618,-666.0,0.00082191,120]
[354659696,1740604272628,-166.43,0.000822,60]
[354659697,1740604272638,-2000.0,0.00082997,7]
[354659698,1740604272648,-350.0,0.00083196,60]
[354659699,1740604272658,-450.0,0.00083744,60]
[354659700,1740604272668,-332.6,0.000849,60]
[354659701,1740604272677,-12173.92,0.0008493,120]
[354659702,1740604272687,-151.0,0.00085123,120]
[354659703,1740604272696,-6616.4969358,0.000888,2]
[354659704,1740604272705,-3000.0,0.000889,120]
[354659705,1740604272714,-150.0,0.00090127,14]
[354659706,1740604272723,-150.0,0.00090127,14]
[354659707,1740604272733,-351.0,0.00090137,120]
[354659708,1740604272742,-12173.92,0.00090409,120]
[354659709,1740604272752,-168.803,0.00090685,120]
[354659710,1740604272762,-165.03,0.000942,60]
[354659711,1740604272771,-1365.14,0.000944,14]
[354659712,1740604272780,-12173.92,0.00095889,120]
[354659713,1740604272789,-666.0,0.0009589,120]
[354659714,1740604272799,-2500.0,0.00095908,60]
[354659715,1740604272808,-2500.0,0.00096208,14]
[354659716,1740604272818,-5000.0,0.000969,120]
[354659717,1740604272827,-2500.0,0.00098361,7]
[354659718,1740604272836,-429.66,0.00099712,120]
[354659719,1740604272846,-154.57,0.001,60]
[354659720,1740604272859,-151.0,0.001,120]
[354659721,1740604272868,-12173.92,0.00101368,120]
[354659722,1740604272878,-19345.11242774,0.00102395,30]
[354659723,1740604272887,-14193.22323861,0.00102395,30]
[354659724,1740604272898,-152.0,0.00105556,120]
[354659725,1740604272907,-12173.92,0.00106848,120]
[354659726,1740604272917,-538.0,0.00108067,120]
[354659727,1740604272927,-396.0,0.00108369,120]
[354659728,1740604272937,-19345.11242774,0.00109,30]
[354659729,1740604272947,-14193.22323861,0.00109,30]
[354659730,1740604272956,-500.0,0.00109589,120]
[354659731,1740604272965,-500.0,0.00109589,120]
[354659732,1740604272974,-2200.0,0.00109999,120]
[354659733,1740604272984,-168.804,0.0011,120]
[354659734,1740604272994,-500.0,0.00111031,120]
[354659735,1740604273003,-396.0,0.00111369,120]
[354659736,1740604273012,-12173.92,0.00112327,120]
[354659737,1740604273022,-500.0,0.00112473,120]
[354659738,1740604273031,-295.11,0.00113,60]
[354659739,1740604273041,-332.6,0.00113,60]
[354659740,1740604273051,-365.83112537,0.00113335,60]
[354659741,1740604273060,-1000.0,0.00113635,14]
[354659742,1740604273069,-500.0,0.00113915,120]
[354659743,1740604273079,-396.0,0.00114369,120]
[354659744,1740604273088,-166.43,0.00115,60]
[354659745,1740604273097,-500.0,0.00115357,120]
[354659746,1740604273107,-3000.0,0.00115787,7]
[354659747,1740604273117,-500.0,0.00116361,120]
[354659748,1740604273126,-500.0,0.00116799,120]
[354659749,1740604273136,-396.0,0.00117369,120]
[354659750,1740604273146,-12173.92,0.00117807,120]
[354659751,1740604273156,-500.0,0.00118241,120]
[354659752,1740604273166,-500.0,0.00119683,120]
[354659753,1740604273175,-396.0,0.00120369,120]
[354659754,1740604273184,-500.0,0.00121125,120]
[354659755,1740604273193,-500.0,0.00122567,120]
[354659756,1740604273203,-12173.92,0.00123286,120]
[354659757,1740604273213,-396.0,0.00123369,120]
[354659758,1740604273223,-500.0,0.00124009,120]
[354659759,1740604273233,-154.57,0.00125,60]
[354659760,1740604273243,-500.0,0.00125451,120]
[354659761,1740604273253,-396.0,0.00126369,120]
[354659762,1740604273263,-500.0,0.00126893,120]
[354659763,1740604273273,-500.0,0.00128335,120]
[354659764,1740604273283,-12173.92,0.00128766,120]
[354659765,1740604273294,-6600.0,0.0012878,120]
[354659766,1740604273304,-6600.0,0.00129054,120]
[354659767,1740604273315,-6600.0,0.00129328,120]
[354659768,1740604273324,-396.0,0.00129369,120]
[354659769,1740604273334,-6600.0,0.00129602,120]
[354659770,1740604273343,-500.0,0.00129777,120]
[354659771,1740604273352,-6600.0,0.0013015,120]
[354659772,1740604273363,-6600.0,0.00130698,120]
[354659773,1740604273373,-500.0,0.00131219,120]
[354659774,1740604273383,-6600.0,0.00131246,120]
[354659775,1740604273391,-6600.0,0.00131794,120]
[354659776,1740604273401,-4617.18077139,0.00132342,120]
[354659777,1740604274212,-500.0,0.00052054,120]
[354659778,1740604274223,-163.98984156,0.00052054,120]
[354659779,1740604274239,-781.79015844,0.00052054,120]
[354659780,1740604274250,-500.0,0.00052054,120]
[354659781,1740604274260,-500.0,0.00052054,120]
[354659782,1740604274270,-500.0,0.00052328,120]
[354659783,1740604274280,-945.78,0.00052328,120]
[354659784,1740604274290,-500.0,0.00052602,120]
[354659785,1740604274301,-500.0,0.00052602,120]
[354659786,1740604274311,-945.78,0.00052602,120]
[354659787,1740604274321,-500.0,0.00052876,120]
[354659788,1740604274331,-500.0,0.00052876,120]
[354659789,1740604274340,-945.78,0.00052876,120]
[354659790,1740604274350,-500.0,0.0005315,120]
[354659791,1740604274361,-500.0,0.0005315,120]
[354659792,1740604274372,-945.78,0.0005315,120]
[354659793,1740604274382,-500.0,0.00053424,120]
[354659794,1740604274393,-500.0,0.00053424,120]
[354659795,1740604274404,-945.78,0.00053424,120]
[354659796,1740604274415,-500.0,0.00053698,120]
[354659797,1740604274425,-500.0,0.00053698,120]
[354659798,1740604274437,-945.78,0.00053698,120]
[354659799,1740604274450,-500.0,0.00053972,120]
[354659800,1740604274460,-500.0,0.00053972,120]
[354659801,1740604274470,-500.0,0.00054246,120]
[354659802,1740604274481,-500.0,0.00054246,120]
[354659803,1740604274491,-500.0,0.0005452,120]
[354659804,1740604274501,-2204.98,0.00068493,10]
[354659805,1740604274511,-1982.81922861,0.00132342,120]
[354659806,1740604274521,-396.0,0.00132369,120]
[354659807,1740604274536,-500.0,0.00132661,120]
[354659808,1740604274549,-6600.0,0.0013289,120]
[354659809,1740604274560,-6600.0,0.00133438,120]
[354659810,1740604274571,-3818.66481032,0.00133986,120]
[354659811,1740604274773,-504.53469536,0.00052054,120]
[354659812,1740604274783,-500.0,0.00052327,120]
[354659813,1740604274793,-945.78,0.00053972,120]
[354659814,1740604274803,-945.78,0.00054246,120]
[354659815,1740604274905,-500.0,0.0005452,120]
[354659816,1740604274916,-945.78,0.0005452,120]
[354659817,1740604274927,-500.0,0.00054794,120]
[354659818,1740604274939,-500.0,0.00054794,120]
[354659819,1740604274950,-945.78,0.00054794,120]
[354659820,1740604274960,-500.0,0.00055068,120]
[354659821,1740604274970,-500.0,0.00055068,120]
[354659822,1740604274979,-945.78,0.00055068,120]
[354659823,1740604274988,-500.0,0.00055342,120]
[354659824,1740604274998,-500.0,0.00055342,120]
[354659825,1740604275008,-945.78,0.00055342,120]
[354659826,1740604275018,-500.0,0.00055616,120]
[354659827,1740604275028,-500.0,0.00055616,120]
[354659828,1740604275038,-945.78,0.00055616,120]
[354659829,1740604275048,-500.0,0.0005589,120]
[354659830,1740604275057,-500.0,0.0005589,120]
[354659831,1740604275067,-945.78,0.0005589,120]
[354659832,1740604275077,-500.0,0.00056164,120]
[354659833,1740604275087,-500.0,0.00056164,120]
[354659834,1740604275097,-945.78,0.00056164,120]
[354659835,1740604275108,-500.0,0.00056438,120]
[354659836,1740604275118,-400.94530464,0.00056438,120]
[354659837,1740604275350,-500.0,0.00052054,120]
[354659838,1740604275361,-500.17336142,0.00052054,120]
[354659839,1740604275371,-642.99,0.00052054,120]
[354659840,1740604275382,-99.05469536,0.00056438,120]
[354659841,1740604275391,-945.78,0.00056438,120]
[354659842,1740604275401,-500.0,0.00056712,120]
[354659843,1740604275412,-500.0,0.00056712,120]
[354659844,1740604275422,-945.78,0.00056712,120]
[354659845,1740604275432,-500.0,0.00056986,120]
[354659846,1740604275442,-256.41078648,0.00056986,120]
[354659847,1740604275451,-945.78,0.00056986,120]
[354659848,1740604275461,-500.0,0.0005726,120]
[354659849,1740604275471,-945.78,0.0005726,120]
[354659850,1740604275480,-500.0,0.00057534,120]
[354659851,1740604275490,-945.78,0.00057534,120]
[354659852,1740604275499,-587.81234021,0.00057808,120]
[354659853,1740604275509,-945.78,0.00057808,120]
[354659854,1740604275519,-945.78,0.00058082,120]
[354659855,1740604275528,-945.95245347,0.00058356,120]
[354659856,1740604275538,-557.5803526,0.00062522,60]
[354659857,1740604275548,-2781.33518968,0.00133986,120]
[354659858,1740604275558,-500.0,0.00134103,120]
[354659859,1740604275567,-12173.92,0.00134245,120]
[354659860,1740604275576,-3019.95000057,0.00134534,120]
[354659861,1740604275585,-3500.0,0.00135056,7]
[354659862,1740604275594,-396.0,0.00135369,120]
[354659863,1740604275603,-500.0,0.00135545,120]
[354659864,1740604275614,-186.4463911,0.00136986,120]
[354659865,1740604275623,-488.80442911,0.00136987,120]
[354659866,1740604275635,-11.19557089,0.00136987,120]
[354659867,1740604275645,-166.43,0.00137,60]
[354659868,1740604275655,-396.0,0.00138369,120]
[354659869,1740604275664,-12173.92,0.00139724,120]
[354659870,1740604275674,-396.0,0.00141369,120]
[354659871,1740604275683,-1092.11,0.001423,30]
[354659872,1740604275693,-396.0,0.00144369,120]
[354659873,1740604275702,-12173.92,0.00145204,120]
[354659874,1740604275711,-396.0,0.00147369,120]
[354659875,1740604275720,-196.431,0.00150369,120]
[354659876,1740604275729,-11141.58365415,0.00150683,120]
[354659877,1740604276059,-729.4979264,0.00150683,120]
[354659878,1740604276071,-302.83841945,0.00150683,120]
[354659879,1740604276080,-261.99281236,0.00156006,7]
[354659880,1740604276089,-12173.92,0.00156163,120]
[354659881,1740604276098,-12173.92,0.00161642,120]
[354659882,1740604276109,-12173.92,0.00167122,120]
[354659883,1740604276129,-3364.91996223,0.00172601,120]
[354659884,1740604276151,-8809.00003777,0.00172601,120]
[354659885,1740604276161,-12174.15581957,0.00178081,120]
[354659886,1740604276170,-819.08,0.001805,120]
[354659887,1740604276180,-314.07644869,0.002,120]
[354659888,1740604276191,-5211.21332541,0.002,59]
[354659889,1740604276201,-836224.87,0.002,120]
[354659890,1740604276210,-150.0,0.00200279,14]
[354659891,1740604276220,-150.0,0.00200279,14]
[354659892,1740604276229,-150.0,0.00244848,14]
[354659893,1740604276239,-150.0,0.00244848,14]
[354659894,1740604276248,-160.0,0.00259361,120]
[354659895,1740604276258,-332.6,0.0026,60]
[354659896,1740604276267,-151.0,0.00273973,120]
[354659897,1740604276276,-151.0,0.00273973,120]
[354659898,1740604276285,-151.0,0.00273973,120]
[354659899,1740604276294,-151.0,0.00273973,120]
[354659900,1740604276303,-151.0,0.00273973,120]
[354659901,1740604276312,-151.0,0.00273973,120]
[354659902,1740604276322,-255.475525,0.00273973,120]
[354659903,1740604276331,-151.0,0.00273973,120]
[354659904,1740604276340,-151.0,0.00273973,120]
[354659905,1740604276350,-221.332388,0.00273973,120]
[354659906,1740604276360,-151.0,0.00273973,120]
[354659907,1740604276369,-221.332388,0.00273973,120]
[354659908,1740604276379,-151.0,0.00273973,120]
[354659909,1740604276388,-221.332388,0.00273973,120]
[354659910,1740604276397,-151.0,0.00273973,120]
[354659911,1740604276407,-221.332388,0.00273973,120]
[354659912,1740604276416,-252.086655,0.00273973,120]
[354659913,1740604276424,-221.332388,0.00273973,120]
[354659914,1740604276434,-221.332388,0.00273973,120]
[354659915,1740604276444,-221.332388,0.00273973,120]
[354659916,1740604276452,-221.332388,0.00273973,120]
[354659917,1740604276461,-221.332388,0.00273973,120]
[354659918,1740604276470,-221.332388,0.00273973,120]
[354659919,1740604276479,-221.332388,0.00273973,120]
[354659920,1740604276488,-221.332388,0.00273973,120]
[354659921,1740604276497,-221.332388,0.00273973,120]
[354659922,1740604276506,-221.332388,0.00273973,120]
[354659923,1740604276515,-221.332388,0.00273973,120]
[354659924,1740604276525,-221.332388,0.00273973,120]
[354659925,1740604276535,-221.332388,0.00273973,120]
[354659926,1740604276544,-221.332388,0.00273973,120]
[354659927,1740604276554,-221.332388,0.00273973,120]
[354659928,1740604276563,-221.332395,0.00273973,120]
[354659929,1740604276572,-203.924852,0.00273973,120]
[354659930,1740604276581,-203.924852,0.00273973,120]
[354659931,1740604276592,-203.924852,0.00273973,120]
[354659932,1740604276602,-203.924852,0.00273973,120]
[354659933,1740604276613,-203.924852,0.00273973,120]
[354659934,1740604276623,-203.924852,0.00273973,120]
[354659935,1740604276633,-203.924852,0.00273973,120]
[354659936,1740604276642,-203.924852,0.00273973,120]
[354659937,1740604276651,-203.924852,0.00273973,120]
[354659938,1740604276660,-203.924852,0.00273973,120]
[354659939,1740604276670,-203.924852,0.00273973,120]
[354659940,1740604276680,-203.924852,0.00273973,120]
[354659941,1740604276690,-203.924852,0.00273973,120]
[354659942,1740604276701,-203.924852,0.00273973,120]
[354659943,1740604276710,-203.924852,0.00273973,120]
[354659944,1740604276720,-203.924852,0.00273973,120]
[354659945,1740604276729,-203.924852,0.00273973,120]
[354659946,1740604276739,-203.924852,0.00273973,120]
[354659947,1740604276748,-203.924852,0.00273973,120]
[354659948,1740604276758,-151.0,0.00273973,120]
[354659949,1740604276767,-151.0,0.00273973,120]
[354659950,1740604276776,-151.0,0.00273973,120]
[354659951,1740604276785,-151.0,0.00273973,120]
[354659952,1740604276794,-151.0,0.00273973,120]
[354659953,1740604276803,-151.0,0.00273973,120]
[354659954,1740604276814,-151.0,0.00273973,120]
[354659955,1740604276823,-151.0,0.00273973,120]
[354659956,1740604276833,-151.0,0.00273973,120]
[354659957,1740604276842,-151.0,0.00273973,120]
[354659958,1740604276856,-151.0,0.00273973,120]
[354659959,1740604276866,-151.0,0.00273973,120]
[354659960,1740604276876,-151.0,0.00273973,120]
[354659961,1740604276885,-151.0,0.00273973,120]
[354659962,1740604276896,-151.0,0.00273973,120]
[354659963,1740604276906,-168.140694,0.00273973,120]
[354659964,1740604276915,-151.0,0.00273973,120]
[354659965,1740604276925,-151.0,0.00273973,120]
[354659966,1740604276935,-151.0,0.00273973,120]
[354659967,1740604276945,-151.0,0.00273973,120]
[354659968,1740604276954,-151.0,0.00273973,120]
[354659969,1740604276964,-151.0,0.00273973,120]
[354659970,1740604276974,-151.0,0.00273973,120]
[354659971,1740604276984,-174.982771,0.00273973,120]
[354659972,1740604276995,-151.0,0.00273973,120]
[354659973,1740604277007,-151.0,0.00273973,120]
[354659974,1740604277018,-151.0,0.00273973,120]
[354659975,1740604277029,-151.0,0.00273973,120]
[354659976,1740604277039,-151.0,0.00273973,120]
[354659977,1740604277049,-159.501464,0.00273973,120]
[354659978,1740604277059,-151.0,0.00273973,120]